fUSD/lending_fUSD_20240821
["ID","MTS","AMOUNT","RATE_DAILY","PERIOD"]
[335493067,1724271076734,-328.6,0.00017771,2]
[335493068,1724271076743,-2266.97091266,0.00017772,2]
[335493069,1724271076752,-770.1724145,0.00017773,2]
[335493070,1724271076761,-24129.49002324,0.00017773,2]
[335493071,1724271076770,-372.50943998,0.00017773,2]
[335493072,1724271076780,-372.50943998,0.00017774,2]
[335493073,1724271076789,-657.68357597,0.00017774,2]
[335493074,1724271076798,-31236.56914261,0.00017775,2]
[335493075,1724271076808,-3598.80553168,0.00017775,2]
[335493076,1724271076821,-372.50943998,0.00017776,2]
[335493077,1724271076830,-2266.97091266,0.00017776,2]
[335493078,1724271076839,-31236.56914261,0.00017776,2]
[335493079,1724271076848,-184.19776883,0.00017776,2]
[335493080,1724271076858,-1689.11239231,0.00017778,2]
[335493081,1724271076867,-657.68357597,0.00017778,2]
[335493082,1724271076876,-657.68357597,0.00017779,2]
[335493083,1724271076886,-35909.13711373,0.00017779,2]
[335493084,1724271076896,-184.19776883,0.0001778,2]
[335493085,1724271076905,-150.5,0.0001778,30]
[335493086,1724271076915,-1689.11239231,0.0001778,2]
[335493087,1724271076924,-35909.13711373,0.00017784,2]
[335493088,1724271076933,-184.19776883,0.00017784,2]
[335493089,1724271076943,-372.50943998,0.00017785,2]
[335493090,1724271076952,-657.68357597,0.00017787,2]
[335493091,1724271076961,-770.1724145,0.00017789,2]
[335493092,1724271076971,-150.5,0.0001779,30]
[335493093,1724271076980,-31236.56914261,0.0001779,2]
[335493094,1724271076989,-24129.49002324,0.00017791,2]
[335493095,1724271076999,-328.6,0.00017793,2]
[335493096,1724271077008,-184.19776883,0.00017794,2]
[335493097,1724271077018,-35909.13711373,0.00017794,2]
[335493098,1724271077028,-35909.13711373,0.00017796,2]
[335493099,1724271077037,-657.68357597,0.00017797,2]
[335493100,1724271077047,-3598.80553168,0.00017797,2]
[335493101,1724271077056,-31236.56914261,0.00017798,2]
[335493102,1724271077065,-237.5,0.00017799,2]
[335493103,1724271077075,-770.1724145,0.000178,2]
[335493104,1724271077085,-150.5,0.000178,30]
[335493105,1724271077096,-168.0,0.000178,30]
[335493106,1724271077107,-7668.6704092,0.000178,5]
[335493107,1724271077121,-4396.83,0.00017807,5]
[335493108,1724271077131,-500.0,0.00017808,5]
[335493109,1724271077141,-849.75,0.00017808,5]
[335493110,1724271077151,-500.0,0.00017808,5]
[335493111,1724271077160,-553.65,0.00017808,5]
[335493112,1724271077169,-2476.81,0.00017808,5]
[335493113,1724271077179,-500.0,0.00017808,5]
[335493114,1724271077188,-819.63,0.00017808,5]
[335493115,1724271077198,-953.0,0.00017808,5]
[335493116,1724271077208,-500.0,0.00017808,2]
[335493117,1724271077217,-553.4,0.00017808,5]
[335493118,1724271077226,-2372.5,0.00017808,5]
[335493119,1724271077235,-1887.65,0.00017808,5]
[335493120,1724271077245,-500.0,0.00017808,5]
[335493121,1724271077254,-500.0,0.00017808,5]
[335493122,1724271077264,-838.39,0.00017808,5]
[335493123,1724271077276,-500.0,0.00017808,5]
[335493124,1724271077286,-942.96,0.00017808,5]
[335493125,1724271077295,-500.09781527,0.00017808,5]
[335493126,1724271077304,-2031.17,0.00017808,5]
[335493127,1724271077314,-1086.02,0.00017808,5]
[335493128,1724271077323,-500.0,0.00017808,5]
[335493129,1724271077332,-499.20294803,0.00017808,5]
[335493130,1724271077341,-151.45415204,0.00017808,5]
[335493131,1724271077353,-1406.4,0.00017808,5]
[335493132,1724271077362,-2109.32,0.00017808,5]
[335493133,1724271077371,-506.39,0.00017808,5]
[335493134,1724271077380,-500.0,0.00017808,5]
[335493135,1724271077389,-500.0,0.00017808,5]
[335493136,1724271077398,-633.06,0.00017808,5]
[335493137,1724271077407,-2082.07,0.00017808,5]
[335493138,1724271077416,-500.0,0.00017808,5]
[335493139,1724271077426,-1272.91,0.00017808,5]
[335493140,1724271077435,-877.63,0.00017808,5]
[335493141,1724271077445,-2827.83,0.00017808,5]
[335493142,1724271077454,-679.05,0.00017808,5]
[335493143,1724271077463,-2900.23,0.00017808,5]
[335493144,1724271077472,-3837.38,0.00017808,5]
[335493145,1724271077481,-1312.2,0.00017808,5]
[335493146,1724271077491,-5651.96,0.00017808,5]
[335493147,1724271077500,-2385.71,0.00017808,5]
[335493148,1724271077509,-2073.03,0.00017808,5]
[335493149,1724271077518,-727.0,0.00017808,5]
[335493150,1724271077528,-4428.25,0.00017808,5]
[335493151,1724271077537,-4040.23,0.00017808,5]
[335493152,1724271077546,-500.0,0.00017808,5]
[335493153,1724271077556,-1758.36,0.00017808,5]
[335493154,1724271077566,-8908.85,0.00017808,5]
[335493155,1724271077575,-2776.63,0.00017808,5]
[335493156,1724271077584,-1849.24,0.00017808,5]
[335493157,1724271077595,-1976.14,0.00017808,5]
[335493158,1724271077604,-4975.15,0.00017808,5]
[335493159,1724271077707,-2893.92,0.00017808,5]
[335493160,1724271077716,-3907.53,0.00017808,5]
[335493161,1724271077725,-652.92,0.00017808,5]
[335493162,1724271077735,-8204.23,0.00017808,5]
[335493163,1724271077744,-715.41,0.00017808,5]
[335493164,1724271077753,-804.61,0.00017808,5]
[335493165,1724271077762,-3869.94,0.00017808,5]
[335493166,1724271077772,-203.52,0.00017808,5]
[335493167,1724271077781,-560.54,0.00017808,5]
[335493168,1724271077790,-13097.07,0.00017808,5]
[335493169,1724271077799,-569.23,0.00017808,5]
[335493170,1724271077808,-500.0,0.00017808,5]
[335493171,1724271077816,-5246.21,0.00017808,5]
[335493172,1724271077826,-508.22,0.00017808,5]
[335493173,1724271077834,-579.28,0.00017808,5]
[335493174,1724271077845,-770.64,0.00017808,5]
[335493175,1724271077854,-540.92,0.00017808,5]
[335493176,1724271077864,-1221.8,0.00017808,5]
[335493177,1724271077873,-592.34,0.00017808,5]
[335493178,1724271077882,-516.26,0.00017808,5]
[335493179,1724271077891,-500.0,0.00017808,5]
[335493180,1724271077900,-500.0,0.00017808,5]
[335493181,1724271077909,-1609.75,0.00017808,5]
[335493182,1724271077919,-1751.79,0.00017808,5]
[335493183,1724271077928,-500.0,0.00017808,5]
[335493184,1724271077937,-2912.27,0.00017808,5]
[335493185,1724271077946,-4271.33,0.00017808,5]
[335493186,1724271077955,-892.56,0.00017808,5]
[335493187,1724271077964,-1349.34,0.00017808,5]
[335493188,1724271077974,-1872.48,0.00017808,5]
[335493189,1724271077983,-1874.41,0.00017808,5]
[335493190,1724271077992,-843.59,0.00017808,5]
[335493191,1724271078002,-572.46,0.00017808,5]
[335493192,1724271078011,-1812.21,0.00017808,5]
[335493193,1724271078020,-1297.86,0.00017808,5]
[335493194,1724271078030,-8174.27,0.00017808,5]
[335493195,1724271078039,-778.72,0.00017808,5]
[335493196,1724271078049,-574.93,0.00017808,5]
[335493197,1724271078058,-2107.46,0.00017808,5]
[335493198,1724271078068,-768.88,0.00017808,5]
[335493199,1724271078077,-2739.14,0.00017808,5]
[335493200,1724271078087,-23349.98,0.00017808,5]
[335493201,1724271078102,-1463.51,0.00017808,5]
[335493202,1724271078112,-500.0,0.00017808,5]
[335493203,1724271078123,-1339.48,0.00017808,5]
[335493204,1724271078133,-3622.41,0.00017808,5]
[335493205,1724271078143,-1649.78,0.00017808,5]
[335493206,1724271078153,-1449.44,0.00017808,5]
[335493207,1724271078162,-11751.7,0.00017808,5]
[335493208,1724271078171,-1388.58,0.00017808,5]
[335493209,1724271078181,-905.44,0.00017808,5]
[335493210,1724271078190,-3327.77,0.00017808,5]
[335493211,1724271078199,-864.58,0.00017808,5]
[335493212,1724271078209,-1453.56,0.00017808,5]
[335493213,1724271078218,-500.0,0.00017808,5]
[335493214,1724271078227,-501.06,0.00017808,5]
[335493215,1724271078236,-2863.74,0.00017808,5]
[335493216,1724271078245,-1806.38,0.00017808,2]
[335493217,1724271078255,-4240.59,0.00017808,5]
[335493218,1724271078264,-888.38,0.00017808,5]
[335493219,1724271078275,-1356.0,0.00017808,5]
[335493220,1724271078285,-956.25,0.00017808,5]
[335493221,1724271078298,-2136.97,0.00017808,5]
[335493222,1724271078308,-598.4,0.00017808,5]
[335493223,1724271078318,-16675.59,0.00017808,5]
[335493224,1724271078327,-2045.67,0.00017808,5]
[335493225,1724271078337,-394.52442203,0.00017808,2]
[335493226,1724271078348,-11742.65520859,0.0001782,2]
[335493227,1724271078358,-265.0,0.0001787,2]
[335493228,1724271078368,-683116.31343618,0.0001788,2]
[335493229,1724271078377,-5206.60140076,0.0001788,2]
[335493230,1724271078386,-150.0,0.00017898,2]
[335493231,1724271078395,-58646.18683012,0.000179,2]
[335493232,1724271078405,-3000.0,0.000179,2]
[335493233,1724271078415,-764.0,0.000179,6]
[335493234,1724271078424,-571.23,0.00017945,2]
[335493235,1724271078433,-1000.0,0.00017979,2]
[335493236,1724271078442,-10115.70898336,0.00018,2]
[335493237,1724271078451,-10070.55241024,0.00018,5]
[335493238,1724271078462,-5922.0,0.00018,5]
[335493239,1724271078470,-2501.81299346,0.00018,2]
[335493240,1724271078480,-176774.25118587,0.00018,4]
[335493241,1724271078489,-231.41822121,0.00018,120]
[335493242,1724271078498,-666.75696557,0.00018,30]
[335493243,1724271078507,-588.20634072,0.00018,3]
[335493244,1724271078516,-226.84423988,0.00018,2]
[335493245,1724271078525,-437.58962321,0.00018,7]
[335493246,1724271078535,-1286.80944454,0.00018,30]
[335493247,1724271078544,-775.27065301,0.00018,5]
[335493248,1724271078553,-223714.78427424,0.00018,2]
[335493249,1724271078562,-1250.0,0.00018,2]
[335493250,1724271078571,-2000.0,0.00018,2]
[335493251,1724271078580,-1003.46,0.00018,2]
[335493252,1724271078590,-500.0,0.00018,2]
[335493253,1724271078602,-500.0,0.00018,2]
[335493254,1724271078611,-500.0,0.00018,2]
[335493255,1724271078621,-500.0,0.00018,2]
[335493256,1724271078630,-500.0,0.00018,2]
[335493257,1724271078639,-500.0,0.00018,2]
[335493258,1724271078648,-500.0,0.00018,2]
[335493259,1724271078658,-500.0,0.00018,2]
[335493260,1724271078667,-500.0,0.00018,2]
[335493261,1724271078676,-500.0,0.00018,2]
[335493262,1724271078686,-500.0,0.00018,2]
[335493263,1724271078695,-500.0,0.00018,2]
[335493264,1724271078705,-500.0,0.00018,2]
[335493265,1724271078714,-500.0,0.00018,2]
[335493266,1724271078723,-500.0,0.00018,2]
[335493267,1724271078733,-500.0,0.00018,2]
[335493268,1724271078743,-500.0,0.00018,2]
[335493269,1724271078752,-500.0,0.00018,2]
[335493270,1724271078763,-595.34692929,0.00018,2]
[335493271,1724271078772,-500.0,0.00018,2]
[335493272,1724271078781,-500.0,0.00018,2]
[335493273,1724271078791,-687.89212899,0.00018,2]
[335493274,1724271078800,-500.0,0.00018,2]
[335493275,1724271078810,-382.76833517,0.00018,2]
[335493276,1724271078819,-318.03056554,0.00018,2]
[335493277,1724271078828,-500.0,0.00018,2]
[335493278,1724271078838,-663.7055482,0.00018,2]
[335493279,1724271078853,-500.0,0.00018,2]
[335493280,1724271078863,-500.0,0.00018,2]
[335493281,1724271078872,-971.49047591,0.00018,2]
[335493282,1724271078882,-300.0,0.00018,5]
[335493283,1724271078891,-2500.0,0.00018,5]
[335493284,1724271078901,-320.0,0.00018,5]
[335493285,1724271078911,-1923.0,0.00018026,2]
[335493286,1724271078920,-623.0,0.00018026,2]
[335493287,1724271078930,-1544.0,0.00018026,2]
[335493288,1724271078939,-1258.0,0.00018026,2]
[335493289,1724271078948,-150.0,0.00018026,2]
[335493290,1724271078958,-447.0,0.00018026,2]
[335493291,1724271078967,-810.0,0.00018026,2]
[335493292,1724271078976,-556.0,0.00018026,2]
[335493293,1724271078986,-150.0,0.00018026,2]
[335493294,1724271078995,-551.0,0.00018026,2]
[335493295,1724271079004,-1896.0,0.00018026,2]
[335493296,1724271079013,-1166.0,0.00018026,2]
[335493297,1724271079022,-248.0,0.00018026,2]
[335493298,1724271079031,-3319.0,0.00018026,2]
[335493299,1724271079040,-764.0,0.00018026,2]
[335493300,1724271079050,-4396.83,0.00018081,5]
[335493301,1724271079059,-500.0,0.00018082,5]
[335493302,1724271079068,-849.75,0.00018082,5]
[335493303,1724271079078,-500.0,0.00018082,5]
[335493304,1724271079087,-553.65,0.00018082,5]
[335493305,1724271079097,-2476.81,0.00018082,5]
[335493306,1724271079107,-500.0,0.00018082,5]
[335493307,1724271079116,-819.63,0.00018082,5]
[335493308,1724271079125,-953.0,0.00018082,5]
[335493309,1724271079135,-553.4,0.00018082,5]
[335493310,1724271079144,-2372.5,0.00018082,5]
[335493311,1724271079154,-1887.65,0.00018082,5]
[335493312,1724271079163,-500.0,0.00018082,5]
[335493313,1724271079172,-500.0,0.00018082,5]
[335493314,1724271079181,-838.39,0.00018082,5]
[335493315,1724271079191,-500.0,0.00018082,5]
[335493316,1724271079201,-942.96,0.00018082,5]
[335493317,1724271079210,-2031.17,0.00018082,5]
[335493318,1724271079219,-1086.02,0.00018082,5]
[335493319,1724271079229,-500.0,0.00018082,5]
[335493320,1724271079238,-1406.4,0.00018082,5]
[335493321,1724271079247,-2109.32,0.00018082,5]
[335493322,1724271079256,-506.39,0.00018082,5]
[335493323,1724271079266,-500.0,0.00018082,5]
[335493324,1724271079281,-577.39079667,0.00018082,5]
[335493325,1724271079291,-633.06,0.00018082,5]
[335493326,1724271079300,-2082.07,0.00018082,5]
[335493327,1724271079311,-183.48099469,0.00018082,5]
[335493328,1724271079322,-1272.91,0.00018082,5]
[335493329,1724271079332,-877.63,0.00018082,5]
[335493330,1724271079342,-2827.83,0.00018082,5]
[335493331,1724271079353,-679.05,0.00018082,5]
[335493332,1724271079363,-2900.23,0.00018082,5]
[335493333,1724271079374,-3837.38,0.00018082,5]
[335493334,1724271079488,-1312.2,0.00018082,5]
[335493335,1724271079498,-5651.96,0.00018082,5]
[335493336,1724271079509,-2385.71,0.00018082,5]
[335493337,1724271079519,-2073.03,0.00018082,5]
[335493338,1724271079529,-4428.25,0.00018082,5]
[335493339,1724271079539,-727.0,0.00018082,5]
[335493340,1724271079549,-4040.23,0.00018082,5]
[335493341,1724271079559,-500.0,0.00018082,5]
[335493342,1724271079569,-1758.36,0.00018082,5]
[335493343,1724271079579,-8908.85,0.00018082,5]
[335493344,1724271079589,-2776.63,0.00018082,5]
[335493345,1724271079600,-1849.24,0.00018082,5]
[335493346,1724271079610,-1976.14,0.00018082,5]
[335493347,1724271079620,-4975.15,0.00018082,5]
[335493348,1724271079630,-2893.92,0.00018082,5]
[335493349,1724271079640,-3907.53,0.00018082,5]
[335493350,1724271079649,-652.92,0.00018082,5]
[335493351,1724271079659,-8204.23,0.00018082,5]
[335493352,1724271079669,-715.41,0.00018082,5]
[335493353,1724271079678,-804.61,0.00018082,5]
[335493354,1724271079688,-3869.94,0.00018082,5]
[335493355,1724271079697,-560.54,0.00018082,5]
[335493356,1724271079707,-13097.07,0.00018082,5]
[335493357,1724271079716,-569.23,0.00018082,5]
[335493358,1724271079726,-500.0,0.00018082,5]
[335493359,1724271079735,-5246.21,0.00018082,5]
[335493360,1724271079744,-508.22,0.00018082,5]
[335493361,1724271079754,-579.28,0.00018082,5]
[335493362,1724271079763,-770.64,0.00018082,5]
[335493363,1724271079773,-540.92,0.00018082,5]
[335493364,1724271079783,-1221.8,0.00018082,5]
[335493365,1724271079792,-592.34,0.00018082,5]
[335493366,1724271079802,-516.26,0.00018082,5]
[335493367,1724271079811,-278.11,0.00018082,5]
[335493368,1724271079821,-500.0,0.00018082,5]
[335493369,1724271079830,-1609.75,0.00018082,5]
[335493370,1724271079839,-1751.79,0.00018082,5]
[335493371,1724271079853,-500.0,0.00018082,5]
[335493372,1724271079863,-2912.27,0.00018082,5]
[335493373,1724271079873,-4271.33,0.00018082,5]
[335493374,1724271079883,-892.56,0.00018082,5]
[335493375,1724271079893,-1349.34,0.00018082,5]
[335493376,1724271079903,-1872.48,0.00018082,5]
[335493377,1724271079913,-1874.41,0.00018082,5]
[335493378,1724271079923,-843.59,0.00018082,5]
[335493379,1724271079933,-572.46,0.00018082,5]
[335493380,1724271079942,-1812.21,0.00018082,5]
[335493381,1724271079952,-1297.86,0.00018082,5]
[335493382,1724271079962,-8174.27,0.00018082,5]
[335493383,1724271079972,-778.72,0.00018082,5]
[335493384,1724271079982,-574.93,0.00018082,5]
[335493385,1724271079992,-2107.46,0.00018082,5]
[335493386,1724271080002,-768.88,0.00018082,5]
[335493387,1724271080012,-2739.14,0.00018082,5]
[335493388,1724271080021,-23349.98,0.00018082,5]
[335493389,1724271080031,-1463.51,0.00018082,5]
[335493390,1724271080040,-500.0,0.00018082,5]
[335493391,1724271080050,-1339.48,0.00018082,5]
[335493392,1724271080060,-3622.41,0.00018082,5]
[335493393,1724271080069,-1649.78,0.00018082,5]
[335493394,1724271080078,-1449.44,0.00018082,5]
[335493395,1724271080088,-11751.7,0.00018082,5]
[335493396,1724271080101,-1388.58,0.00018082,5]
[335493397,1724271080111,-905.44,0.00018082,5]
[335493398,1724271080120,-3327.77,0.00018082,5]
[335493399,1724271080130,-864.58,0.00018082,5]
[335493400,1724271080139,-1453.56,0.00018082,5]
[335493401,1724271080148,-500.0,0.00018082,5]
[335493402,1724271080157,-501.06,0.00018082,5]
[335493403,1724271080167,-2863.74,0.00018082,5]
[335493404,1724271080176,-1806.38,0.00018082,2]
[335493405,1724271080185,-4240.59,0.00018082,5]
[335493406,1724271080195,-888.38,0.00018082,5]
[335493407,1724271080204,-1356.0,0.00018082,5]
[335493408,1724271080213,-956.25,0.00018082,5]
[335493409,1724271080225,-2136.97,0.00018082,5]
[335493410,1724271080234,-598.4,0.00018082,5]
[335493411,1724271080243,-16675.59,0.00018082,5]
[335493412,1724271080252,-2045.67,0.00018082,5]
[335493413,1724271080262,-500.0,0.00018082,2]
[335493414,1724271080271,-187.43288341,0.00018082,2]
[335493415,1724271080281,-199.12,0.00018082,2]
[335493416,1724271080292,-256.63,0.00018082,2]
[335493417,1724271080302,-652.59509662,0.00018145,2]
[335493418,1724271080311,-150.0,0.00018173,120]
[335493419,1724271080320,-265.0,0.000182,2]
[335493420,1724271080330,-1000.0,0.00018288,2]
[335493421,1724271080340,-4396.83,0.00018355,5]
[335493422,1724271080352,-500.0,0.00018356,5]
[335493423,1724271080361,-849.75,0.00018356,5]
[335493424,1724271080371,-500.0,0.00018356,5]
[335493425,1724271080381,-553.65,0.00018356,5]
[335493426,1724271080390,-2476.81,0.00018356,5]
[335493427,1724271080399,-500.0,0.00018356,5]
[335493428,1724271080408,-819.63,0.00018356,5]
[335493429,1724271080417,-953.0,0.00018356,5]
[335493430,1724271080426,-553.4,0.00018356,5]
[335493431,1724271080436,-2372.5,0.00018356,5]
[335493432,1724271080445,-1887.65,0.00018356,5]
[335493433,1724271080454,-500.0,0.00018356,5]
[335493434,1724271080463,-500.0,0.00018356,5]
[335493435,1724271080473,-838.39,0.00018356,5]
[335493436,1724271080483,-500.0,0.00018356,5]
[335493437,1724271080492,-942.96,0.00018356,5]
[335493438,1724271080502,-2031.17,0.00018356,5]
[335493439,1724271080511,-1086.02,0.00018356,5]
[335493440,1724271080521,-260.32726029,0.00018356,5]
[335493441,1724271080530,-1406.4,0.00018356,5]
[335493442,1724271080540,-2109.32,0.00018356,5]
[335493443,1724271080550,-506.39,0.00018356,5]
[335493444,1724271080560,-500.0,0.00018356,5]
[335493445,1724271080569,-633.06,0.00018356,5]
[335493446,1724271080578,-2082.07,0.00018356,5]
[335493447,1724271080588,-1272.91,0.00018356,5]
[335493448,1724271080599,-877.63,0.00018356,5]
[335493449,1724271080608,-2827.83,0.00018356,5]
[335493450,1724271080617,-679.05,0.00018356,5]
[335493451,1724271080626,-2900.23,0.00018356,5]
[335493452,1724271080635,-3837.38,0.00018356,5]
[335493453,1724271080644,-1312.2,0.00018356,5]
[335493454,1724271080654,-5651.96,0.00018356,5]
[335493455,1724271080663,-2385.71,0.00018356,5]
[335493456,1724271080672,-2073.03,0.00018356,5]
[335493457,1724271080681,-4428.25,0.00018356,5]
[335493458,1724271080691,-727.0,0.00018356,5]
[335493459,1724271080700,-4040.23,0.00018356,5]
[335493460,1724271080708,-500.0,0.00018356,5]
[335493461,1724271080718,-1758.36,0.00018356,5]
[335493462,1724271080727,-8908.85,0.00018356,5]
[335493463,1724271080736,-2776.63,0.00018356,5]
[335493464,1724271080745,-1849.24,0.00018356,5]
[335493465,1724271080755,-1976.14,0.00018356,5]
[335493466,1724271080763,-4975.15,0.00018356,5]
[335493467,1724271080773,-2893.92,0.00018356,5]
[335493468,1724271080782,-3907.53,0.00018356,5]
[335493469,1724271080791,-652.92,0.00018356,5]
[335493470,1724271080800,-8204.23,0.00018356,5]
[335493471,1724271080810,-715.41,0.00018356,5]
[335493472,1724271080819,-804.61,0.00018356,5]
[335493473,1724271080828,-3869.94,0.00018356,5]
[335493474,1724271080838,-560.54,0.00018356,5]
[335493475,1724271080848,-13097.07,0.00018356,5]
[335493476,1724271080858,-569.23,0.00018356,5]
[335493477,1724271080868,-500.0,0.00018356,5]
[335493478,1724271080877,-5246.21,0.00018356,5]
[335493479,1724271080887,-508.22,0.00018356,5]
[335493480,1724271080896,-579.28,0.00018356,5]
[335493481,1724271080906,-770.64,0.00018356,5]
[335493482,1724271080915,-540.92,0.00018356,5]
[335493483,1724271080925,-1221.8,0.00018356,5]
[335493484,1724271080934,-592.34,0.00018356,5]
[335493485,1724271080943,-516.26,0.00018356,5]
[335493486,1724271080952,-500.0,0.00018356,5]
[335493487,1724271080961,-1609.75,0.00018356,5]
[335493488,1724271080971,-1751.79,0.00018356,5]
[335493489,1724271080980,-500.0,0.00018356,5]
[335493490,1724271080990,-2912.27,0.00018356,5]
[335493491,1724271080999,-4271.33,0.00018356,5]
[335493492,1724271081008,-892.56,0.00018356,5]
[335493493,1724271081017,-1349.34,0.00018356,5]
[335493494,1724271081027,-1872.48,0.00018356,5]
[335493495,1724271081112,-1874.41,0.00018356,5]
[335493496,1724271081130,-843.59,0.00018356,5]
[335493497,1724271081139,-572.46,0.00018356,5]
[335493498,1724271081148,-1812.21,0.00018356,5]
[335493499,1724271081157,-1297.86,0.00018356,5]
[335493500,1724271081166,-8174.27,0.00018356,5]
[335493501,1724271081175,-778.72,0.00018356,5]
[335493502,1724271081185,-574.93,0.00018356,5]
[335493503,1724271081194,-2107.46,0.00018356,5]
[335493504,1724271081203,-768.88,0.00018356,5]
[335493505,1724271081212,-2739.14,0.00018356,5]
[335493506,1724271081221,-23349.98,0.00018356,5]
[335493507,1724271081230,-1463.51,0.00018356,5]
[335493508,1724271081240,-500.0,0.00018356,5]
[335493509,1724271081250,-1339.48,0.00018356,5]
[335493510,1724271081259,-3622.41,0.00018356,5]
[335493511,1724271081268,-1649.78,0.00018356,5]
[335493512,1724271081278,-1449.44,0.00018356,5]
[335493513,1724271081287,-11751.7,0.00018356,5]
[335493514,1724271081298,-1388.58,0.00018356,5]
[335493515,1724271081307,-905.44,0.00018356,5]
[335493516,1724271081316,-3327.77,0.00018356,5]
[335493517,1724271081326,-864.58,0.00018356,5]
[335493518,1724271081336,-1453.56,0.00018356,5]
[335493519,1724271081347,-513.24,0.00018356,5]
[335493520,1724271081356,-501.06,0.00018356,5]
[335493521,1724271081366,-2863.74,0.00018356,5]
[335493522,1724271081376,-1806.38,0.00018356,2]
[335493523,1724271081386,-4240.59,0.00018356,5]
[335493524,1724271081395,-888.38,0.00018356,5]
[335493525,1724271081405,-1356.0,0.00018356,5]
[335493526,1724271081414,-956.25,0.00018356,5]
[335493527,1724271081424,-2136.97,0.00018356,5]
[335493528,1724271081433,-598.4,0.00018356,5]
[335493529,1724271081442,-16675.59,0.00018356,5]
[335493530,1724271081451,-2045.67,0.00018356,5]
[335493531,1724271081461,-7000.0,0.00018463,7]
[335493532,1724271081471,-2500.0,0.000185,2]
[335493533,1724271081480,-265.0,0.0001854,2]
[335493534,1724271081489,-152.0,0.00018588,3]
[335493535,1724271081498,-1000.0,0.00018596,2]
[335493536,1724271081507,-4866.43744356,0.000186,2]
[335493537,1724271081516,-1472.699999,0.000186,34]
[335493538,1724271081525,-4396.83,0.00018629,5]
[335493539,1724271081535,-500.0,0.0001863,5]
[335493540,1724271081545,-849.75,0.0001863,5]
[335493541,1724271081555,-500.0,0.0001863,5]
[335493542,1724271081564,-553.65,0.0001863,5]
[335493543,1724271081573,-2476.81,0.0001863,5]
[335493544,1724271081583,-500.0,0.0001863,5]
[335493545,1724271081592,-819.63,0.0001863,5]
[335493546,1724271081603,-953.0,0.0001863,5]
[335493547,1724271081612,-553.4,0.0001863,5]
[335493548,1724271081622,-2372.5,0.0001863,5]
[335493549,1724271081631,-1887.65,0.0001863,5]
[335493550,1724271081640,-500.0,0.0001863,5]
[335493551,1724271081649,-500.0,0.0001863,5]
[335493552,1724271081658,-838.39,0.0001863,5]
[335493553,1724271081668,-500.0,0.0001863,5]
[335493554,1724271081678,-942.96,0.0001863,5]
[335493555,1724271081687,-2031.17,0.0001863,5]
[335493556,1724271081697,-1086.02,0.0001863,5]
[335493557,1724271081707,-1406.4,0.0001863,5]
[335493558,1724271081716,-2109.32,0.0001863,5]
[335493559,1724271081725,-506.39,0.0001863,5]
[335493560,1724271081734,-500.0,0.0001863,5]
[335493561,1724271081743,-633.06,0.0001863,5]
[335493562,1724271081752,-2082.07,0.0001863,5]
[335493563,1724271081761,-1272.91,0.0001863,5]
[335493564,1724271081770,-877.63,0.0001863,5]
[335493565,1724271081779,-2827.83,0.0001863,5]
[335493566,1724271081789,-679.05,0.0001863,5]